bitfinex/quotes_SOLUSD_20260217
["timestamp","ask_amount","ask_price","bid_price","bid_amount"]
[1771329921300,4.32664899,85.27,85.237,0.49773572]
[1771329921622,4.32664899,85.27,85.238,0.49773572]
[1771329923705,11.7275915,85.269,85.239,11.73171904]
[1771329923907,11.7275915,85.269,85.24,0.49773572]
[1771329925230,4.32664899,85.26,85.24,0.49773572]
[1771329925416,11.7275915,85.269,85.24,0.49773572]
[1771329926416,11.7275915,85.269,85.242,0.49773572]
[1771329928213,11.72701302,85.274,85.242,0.49773572]
[1771329928411,11.7262163,85.279,85.244,0.49773572]
[1771329929030,11.7262163,85.279,85.251,0.49773572]
[1771329929603,11.72566841,85.283,85.251,0.49773572]
[1771329930501,4.32664899,85.29,85.253,0.49773572]
[1771329930706,11.72484142,85.289,85.253,0.49773572]
[1771329930929,11.72484142,85.289,85.255,0.49773572]
[1771329932423,4.32664899,85.3,85.261,0.49773572]
[1771329932608,11.72346686,85.299,85.263,0.49773572]
[1771329934315,11.72346686,85.299,85.271,0.49773572]
[1771329934514,4.32664899,85.31,85.271,0.49773572]
[1771329935521,11.72209262,85.309,85.273,0.49773572]
[1771329936816,11.72209262,85.309,85.281,0.49773572]
[1771329937833,11.72209262,85.309,85.283,0.49773572]
[1771329939044,29.29476114,85.34,85.3,4.32664899]
[1771329939220,4.32664899,85.33,85.295,20.06]
[1771329939833,4.32664899,85.33,85.296,41.03357718]
[1771329940135,12.21857832,85.333,85.296,41.03357718]
[1771329940333,4.32664899,85.34,85.3,4.32664899]
[1771329940638,4.32664899,85.34,85.301,20.06]
[1771329941133,4.32664899,85.34,85.302,0.49337224]
[1771329941326,16.04460145,85.34,85.304,0.49337224]
[1771329941514,16.04460145,85.34,85.306,0.49337224]
[1771329942116,0.49971897,85.339,85.291,11.72456648]
[1771329942328,0.49971897,85.319,85.293,0.49337224]
[1771329944342,4.32664899,85.32,85.287,29.31272893]
[1771329944343,0.49599743,85.317,85.29,20.06]
[1771329944537,0.49599743,85.317,85.288,20.06]
[1771329944836,4.32664899,85.32,85.289,0.45105972]
[1771329945628,11.7202984,85.323,85.289,0.45105972]
[1771329946129,0.49599743,85.324,85.289,0.45105972]
[1771329946333,11.72016923,85.323,85.29,11.72470395]
[1771329946528,0.49599743,85.322,85.291,0.45105972]
[1771329947028,0.49599743,85.319,85.291,0.45105972]
[1771329947546,0.49599743,85.326,85.291,0.45105972]
[1771329948141,0.49599743,85.326,85.293,0.45105972]
[1771329949540,11.71989452,85.325,85.295,0.45105972]
[1771329949928,11.71934902,85.329,85.297,0.45105972]
[1771329950620,4.3236848,85.33,85.297,0.45105972]
[1771329950821,11.71889288,85.333,85.297,0.45105972]
[1771329951134,4.3236848,85.34,85.301,0.46693672]
[1771329951135,11.71797476,85.339,85.301,0.46693672]
[1771329951339,11.71797476,85.339,85.303,0.46693672]
[1771329951745,11.71797476,85.339,85.305,0.46693672]
[1771329952240,0.46059299,85.338,85.305,0.46693672]
[1771329952541,4.3236848,85.33,85.305,0.46693672]
[1771329954142,16.04299403,85.33,85.305,0.46693672]
[1771329954334,16.04299403,85.33,85.307,0.46693672]
[1771329954536,16.04159282,85.34,85.307,0.46693672]
[1771329955229,0.46059299,85.339,85.307,0.46693672]
[1771329958848,0.46059299,85.337,85.309,0.46693672]
[1771329959232,11.71810916,85.338,85.309,0.46693672]
[1771329959653,12.17870215,85.338,85.309,0.46693672]
[1771329959853,0.46059299,85.337,85.309,0.46693672]
[1771329960346,0.46059299,85.337,85.311,0.46693672]
[1771329961752,0.46059299,85.336,85.313,0.46693672]
[1771329962153,0.46059299,85.329,85.301,20.04]
[1771329962348,0.46059299,85.319,85.294,11.72414431]
[1771329962852,0.46059299,85.319,85.29,11.72458508]
[1771329963628,0.46059299,85.319,85.291,0.46693672]
[1771329969754,0.46059299,85.325,85.293,0.46693672]
[1771329971944,4.3236848,85.33,85.288,20.04]
[1771329971945,0.46059299,85.323,85.295,0.46693672]
[1771329974355,4.3236848,85.32,85.295,0.46693672]
[1771329974656,0.49827603,85.319,85.295,0.46693672]
[1771329974856,0.49827603,85.319,85.297,0.45343396]
[1771329978768,11.72085609,85.318,85.297,0.45343396]
[1771329979159,11.72085609,85.318,85.294,11.72411301]
[1771329979160,0.49827603,85.339,85.301,0.45343396]
[1771329979465,0.49827603,85.339,85.25,8.94097732]
[1771329979466,0.49827603,85.309,85.281,0.45343396]
[1771329979665,0.49827603,85.289,85.247,0.45343396]
[1771329979962,4.82196083,85.28,85.258,0.45343396]
[1771329980165,5.11556855,85.314,85.258,0.45343396]
[1771329980358,0.49827603,85.309,85.275,0.45343396]
[1771329980545,0.49827603,85.307,85.277,0.45343396]
[1771329980753,0.49827603,85.314,85.277,0.45343396]
[1771329981357,0.49827603,85.314,85.279,0.45343396]
[1771329981759,0.49827603,85.314,85.281,0.45343396]
[1771329983167,0.49827603,85.309,85.282,0.45343396]
[1771329984157,0.49827603,85.309,85.283,0.45343396]
[1771329984958,0.49827603,85.299,85.273,20.06]
[1771329985152,0.49827603,85.297,85.273,20.06]
[1771329985574,11.7236043,85.298,85.266,0.45343396]
[1771329985575,0.49827603,85.289,85.266,0.45343396]
[1771329985955,0.49827603,85.289,85.267,0.45343396]
[1771329986273,0.49827603,85.302,85.267,0.45343396]
[1771329986479,0.49827603,85.289,85.241,0.45343396]
[1771329986661,0.49827603,85.289,85.243,0.45343396]
[1771329986972,0.49827603,85.289,85.251,0.45343396]
[1771329987273,0.49827603,85.287,85.253,0.45343396]
[1771329989981,0.49827603,85.299,85.255,0.45343396]
[1771329990163,0.49827603,85.299,85.257,0.45343396]
[1771329990983,0.49827603,85.299,85.258,20.06]
[1771329991281,0.49827603,85.299,85.261,0.45343396]
[1771329992171,0.49827603,85.299,85.263,0.45343396]
[1771329992886,11.72281251,85.304,85.263,0.45343396]
[1771329993187,0.49827603,85.303,85.263,0.45343396]
[1771329993379,4.82196083,85.3,85.263,0.45343396]
[1771329994672,0.49827603,85.3,85.265,0.45343396]
[1771329995682,11.72346686,85.299,85.265,0.45343396]
[1771329996379,11.72346686,85.299,85.267,0.45343396]
[1771329996774,11.72346686,85.299,85.271,0.45343396]
[1771329997464,11.72346686,85.299,85.273,0.45343396]
[1771329998178,11.72346686,85.299,85.274,11.72690386]
[1771329998381,11.72346686,85.299,85.275,0.45343396]
[1771329999079,0.49827603,85.298,85.275,0.45343396]
[1771330000864,0.49827603,85.298,85.277,0.45343396]
[1771330002572,11.72374174,85.297,85.277,0.45343396]
[1771330006266,0.47218204,85.297,85.277,0.45343396]
[1771330006883,0.47218204,85.297,85.274,20.06]
[1771330007087,0.47218204,85.297,85.274,20.55449465]
[1771330009289,0.47218204,85.296,85.275,0.49449465]
[1771330010175,0.47218204,85.296,85.276,0.49449465]
[1771330010371,0.47218204,85.296,85.277,20.08]
[1771330010673,0.47218204,85.296,85.278,0.49449465]
[1771330010989,0.49153858,85.306,85.278,0.49449465]
[1771330011575,0.49153858,85.306,85.279,11.7262163]
[1771330011897,0.49153858,85.306,85.281,0.4721349]
[1771330014397,0.49153858,85.306,85.283,0.4721349]
[1771330014682,0.49153858,85.304,85.283,0.4721349]
[1771330017098,0.49153858,85.308,85.283,0.4721349]
[1771330017271,4.32661792,85.3,85.283,0.4721349]
[1771330017475,4.8181565,85.3,85.283,0.4721349]
[1771330017788,0.49153858,85.299,85.281,20.1]
[1771330018190,11.7236043,85.298,85.281,20.5721349]
[1771330018490,11.7236043,85.298,85.282,0.4721349]
[1771330018990,0.49153858,85.297,85.282,0.4721349]
[1771330019199,0.49153858,85.297,85.281,20.1]
[1771330019374,0.49153858,85.297,85.281,19.60452856]
[1771330021277,11.72387919,85.296,85.281,19.60452856]
[1771330021475,11.72387919,85.296,85.276,0.4721349]
[1771330021476,0.49153858,85.295,85.276,0.4721349]
[1771330024200,0.49153858,85.3,85.278,0.4721349]
[1771330024391,11.72346686,85.299,85.278,0.4721349]
[1771330025208,0.49153858,85.344,85.291,0.4721349]
[1771330025502,0.49153858,85.329,85.301,0.4721349]
[1771330026296,0.49153858,85.349,85.311,0.4721349]
[1771330026697,0.49153858,85.349,85.313,0.4721349]
[1771330027999,4.32661792,85.35,85.321,0.4721349]
[1771330029411,0.1,85.4,85.34,4.32661792]
[1771330029620,0.49153858,85.372,85.317,4.61729252]
[1771330029780,0.49153858,85.369,85.319,0.4721349]
[1771330029984,0.1,85.38,85.341,0.4721349]
[1771330030685,0.1,85.38,85.351,0.4721349]
[1771330030994,0.1,85.38,85.361,0.4721349]
[1771330031200,0.1,85.39,85.361,0.4721349]
[1771330031403,0.1,85.39,85.371,0.4721349]
[1771330031907,0.59153858,85.39,85.366,0.4721349]
[1771330033318,0.1,85.39,85.366,0.4721349]
[1771330033791,0.1,85.39,85.371,0.4721349]
[1771330034109,0.1,85.39,85.373,0.4721349]
[1771330036593,0.1,85.4,85.382,0.49799799]
[1771330038610,0.1,85.4,85.383,11.71193328]
[1771330038915,11.70550182,85.43,85.39,4.32661792]
[1771330039126,4.32661792,85.42,85.391,0.49799799]
[1771330039411,4.32661792,85.42,85.387,0.49799799]
[1771330039915,4.32661792,85.41,85.386,20.24]
[1771330040301,4.32661792,85.4,85.382,20.24]
[1771330040499,4.32661792,85.41,85.382,20.24]
[1771330040700,0.45127924,85.409,85.382,20.24]
[1771330041507,0.45127924,85.409,85.384,0.49799799]
[1771330043001,0.45127924,85.399,85.371,0.49799799]
[1771330043221,0.45127924,85.399,85.372,20.24]
[1771330043719,0.45127924,85.427,85.391,0.49799799]
[1771330044020,0.45127924,85.419,85.391,0.49799799]
[1771330044605,0.45127924,85.427,85.391,0.49799799]
[1771330044804,0.45127924,85.427,85.393,0.49799799]
[1771330045104,0.45127924,85.427,85.395,0.49799799]
[1771330045319,0.45127924,85.427,85.396,20.24]
[1771330045522,0.45127924,85.427,85.397,0.49799799]
[1771330045823,0.45127924,85.419,85.39,0.49799799]
[1771330046199,1.870007,85.428,85.392,0.49799799]
[1771330046403,14.02711423,85.428,85.394,0.49799799]
[1771330046620,0.45127924,85.427,85.394,0.49799799]
[1771330046824,0.45127924,85.451,85.428,0.49799799]
[1771330047008,0.45127924,85.451,85.42,4.32661792]
[1771330047210,0.45127924,85.449,85.41,4.32661792]
[1771330047403,0.45127924,85.449,85.42,4.32661792]
[1771330047605,0.45127924,85.459,85.42,4.32661792]
[1771330048128,0.45127924,85.458,85.421,20.34]
[1771330048316,0.45127924,85.458,85.42,4.32661792]
[1771330049126,0.45127924,85.458,85.421,0.49799799]
[1771330049723,0.45127924,85.458,85.423,0.49799799]
[1771330050429,0.45127924,85.449,85.422,11.70658612]
[1771330050625,5.36086188,85.471,85.422,11.70658612]
[1771330050626,7.93374123,85.507,85.423,0.49799799]
[1771330050930,0.45127924,85.479,85.44,4.32661792]
[1771330051113,11.69836924,85.482,85.422,40.97305143]
[1771330051114,0.45127924,85.469,85.423,0.49799799]
[1771330051309,0.45127924,85.469,85.431,0.49799799]
[1771330051725,0.45127924,85.469,85.433,0.49799799]
[1771330052125,0.45127924,85.467,85.433,0.49799799]
[1771330052324,0.45127924,85.459,85.433,0.49799799]
[1771330053827,29.24592311,85.482,85.433,0.49799799]
[1771330054024,0.45127924,85.504,85.451,0.49799799]
[1771330054234,0.45127924,85.499,85.461,0.49799799]
[1771330054815,0.45127924,85.479,85.445,0.49799799]
[1771330055919,0.45127924,85.459,85.434,11.70494182]
[1771330056418,0.45127924,85.449,85.425,11.706175]
[1771330057040,11.70028548,85.468,85.426,0.49799799]
[1771330057220,0.50126716,85.51,85.46,4.32661792]
[1771330057421,12.92,85.562,85.5,4.32661792]
[1771330057741,4.32661792,85.56,85.51,4.32661792]
[1771330058036,4.32661792,85.56,85.523,0.49799799]
[1771330058227,4.32661792,85.57,85.53,4.32661792]
[1771330058421,11.6862021,85.571,85.54,4.32661792]
[1771330058621,11.6862021,85.571,85.51,4.32661792]
[1771330058622,4.32661792,85.55,85.51,4.32661792]
[1771330059032,4.32661792,85.54,85.503,0.49799799]
[1771330059344,0.45127924,85.519,85.492,11.69700088]
[1771330059716,0.45127924,85.519,85.5,4.32661792]
[1771330059921,0.45127924,85.519,85.492,11.69700088]
[1771330062717,4.32661792,85.53,85.492,12.19499887]
[1771330062919,0.45127924,85.529,85.5,4.32661792]
[1771330063115,0.45127924,85.549,85.511,0.49799799]
[1771330063627,0.45127924,85.529,85.492,11.69700088]
[1771330063819,0.45127924,85.519,85.492,11.69700088]
[1771330065042,0.50608611,85.517,85.485,11.6978276]
[1771330066619,11.69371813,85.516,85.481,11.6985061]
[1771330066824,0.50608611,85.515,85.481,11.6985061]
[1771330067630,0.50608611,85.515,85.49,4.32661792]
[1771330068242,0.50608611,85.515,85.481,11.6985061]
[1771330068538,0.50608611,85.509,85.476,12.19799259]
[1771330068742,0.50608611,85.509,85.48,4.32661792]
[1771330068941,0.50608611,85.507,85.481,11.6985061]
[1771330069748,0.50608611,85.507,85.471,11.69987481]
[1771330070055,4.32661792,85.5,85.471,11.69987481]
[1771330070351,0.50608611,85.499,85.465,0.4989285]
[1771330070524,0.50608611,85.499,85.465,11.70062767]
[1771330070721,0.50608611,85.499,85.47,4.32661792]
[1771330071032,0.50608611,85.499,85.471,11.69987481]
[1771330072027,0.49052679,85.509,85.471,0.50006355]
[1771330072231,0.49052679,85.509,85.48,4.3065258]
[1771330073143,0.49052679,85.508,85.48,4.3065258]
[1771330074136,0.49052679,85.524,85.491,0.50006355]
[1771330074739,0.49052679,85.524,85.49,4.3065258]
[1771330075874,0.49052679,85.524,85.457,0.50006355]
[1771330076147,0.49052679,85.524,85.415,46.82968402]
[1771330076148,40.92562059,85.521,85.481,0.52699278]
[1771330076442,40.92562059,85.521,85.491,0.52699278]
[1771330076443,11.69303445,85.521,85.491,0.52699278]
[1771330076644,29.81303445,85.521,85.491,0.52699278]
[1771330077028,59.04562059,85.521,85.48,4.3065258]
[1771330077229,40.92562059,85.521,85.481,0.52699278]
[1771330077446,18.12,85.52,85.481,0.52699278]
[1771330077642,5.36086188,85.519,85.481,0.52699278]
[1771330078555,40.92705628,85.518,85.481,0.52699278]
[1771330078755,4.3065258,85.51,85.461,0.52699278]
[1771330078933,23.48086188,85.509,85.461,0.52699278]
[1771330079857,40.93184263,85.508,85.461,0.52699278]
[1771330080366,18.12,85.507,85.461,0.52699278]
[1771330080948,0.02019682,85.506,85.461,0.52699278]
[1771330081367,0.02019682,85.498,85.45,4.3065258]
[1771330081565,0.02019682,85.489,85.444,0.52699278]
[1771330081861,0.02019682,85.489,85.443,11.7037089]
[1771330082169,0.02343149,85.488,85.443,11.7037089]
[1771330082376,0.02343149,85.488,85.444,0.52699278]
[1771330082565,0.02343149,85.487,85.444,0.52699278]
[1771330085471,18.12,85.488,85.471,0.52699278]
[1771330085845,0.03290745,85.503,85.471,0.52699278]
[1771330086070,18.12,85.494,85.471,0.52699278]
[1771330086273,16.5270015,85.494,85.48,4.83351858]
[1771330086444,16.5270015,85.494,85.481,0.52699278]
[1771330086646,18.12,85.507,85.481,0.52699278]
[1771330086951,18.12,85.507,85.48,4.3065258]
[1771330086952,18.12,85.507,85.491,0.52699278]
[1771330087158,0.03903216,85.521,85.491,0.52699278]
[1771330087361,18.15903216,85.52,85.491,0.52699278]
[1771330087871,18.12,85.519,85.491,0.52699278]
[1771330088375,0.03903216,85.52,85.491,0.52699278]
[1771330088574,18.12,85.518,85.491,0.52699278]
[1771330088869,18.12,85.518,85.493,0.52699278]
[1771330089469,11.69358139,85.517,85.493,0.52699278]
[1771330089672,18.12,85.543,85.511,0.52699278]
[1771330089854,0.0450318,85.548,85.511,0.52699278]
[1771330089855,18.12,85.542,85.511,0.52699278]
[1771330090256,18.12,85.541,85.511,0.52699278]
[1771330090863,40.90935654,85.555,85.521,0.52699278]
[1771330091070,18.12,85.554,85.521,0.52699278]
[1771330091354,0.05089419,85.553,85.521,0.52699278]
[1771330091571,0.05089419,85.552,85.521,0.52699278]
[1771330092272,11.68866083,85.553,85.521,0.52699278]
[1771330092460,18.12,85.552,85.53,4.3065258]
[1771330092860,18.12,85.552,85.531,0.52699278]
[1771330094072,18.12,85.552,85.533,0.52699278]
[1771330094378,18.12,85.559,85.533,0.52699278]
[1771330094561,11.68588007,85.574,85.541,0.53418884]
[1771330094765,11.68588007,85.574,85.532,11.69153065]
[1771330094766,18.12,85.573,85.551,0.53418884]
[1771330095076,46.71733548,85.622,85.551,0.53418884]
[1771330095077,11.68363373,85.59,85.551,0.53418884]
[1771330095267,29.20527806,85.601,85.561,0.53418884]
[1771330095268,11.68224299,85.6,85.561,0.53418884]
[1771330095579,11.68388091,85.588,85.561,0.53418884]
[1771330096654,0.0625061,85.586,85.553,0.53418884]
[1771330096855,18.12,85.587,85.561,0.53418884]
[1771330097472,11.68388091,85.588,85.562,0.53418884]
[1771330097678,0.06393847,85.587,85.56,4.3065258]
[1771330097870,0.06393847,85.585,85.559,11.68772413]
[1771330098262,0.55324015,85.583,85.523,29.23190252]
[1771330098562,0.55324015,85.581,85.54,4.3065258]
[1771330099386,0.55324015,85.579,85.54,4.3065258]
[1771330100286,0.55324015,85.577,85.506,0.53418884]
[1771330100480,0.55324015,85.577,85.531,0.53418884]
[1771330100978,0.55324015,85.577,85.54,4.3065258]
[1771330101178,0.55324015,85.577,85.531,0.53418884]
[1771330102078,0.55324015,85.569,85.524,0.53418884]
[1771330102281,0.55324015,85.567,85.531,0.53418884]
[1771330103981,59.00314135,85.568,85.52,4.3065258]
[1771330103982,0.55324015,85.559,85.52,4.3065258]
[1771330104585,4.61729252,85.565,85.508,0.53418884]
[1771330104586,0.55324015,85.549,85.508,0.53418884]
[1771330104880,4.3065258,85.55,85.5,4.3065258]
[1771330104881,0.55324015,85.547,85.5,4.84071464]
[1771330105184,0.55324015,85.539,85.5,4.84071464]
[1771330105478,0.55324015,85.539,85.5,0.53418884]
[1771330106073,4.61729252,85.545,85.492,0.53418884]
[1771330106074,0.55324015,85.529,85.492,0.53418884]
[1771330106277,0.55324015,85.519,85.484,0.53418884]
[1771330106481,0.55324015,85.507,85.472,0.53418884]
[1771330106683,0.55324015,85.499,85.461,0.53418884]
[1771330107064,40.93184263,85.508,85.453,0.53418884]
[1771330107065,0.55324015,85.489,85.453,0.53418884]
[1771330107270,0.55324015,85.487,85.453,0.53418884]
[1771330107767,0.55324015,85.479,85.445,0.53418884]
[1771330107965,0.55324015,85.469,85.436,0.53418884]
[1771330108185,10.7737102,85.47,85.436,0.53418884]
[1771330108186,0.55324015,85.467,85.436,0.53418884]
[1771330108775,11.70055928,85.466,85.436,0.53418884]
[1771330108986,0.55324015,85.459,85.427,0.53418884]
[1771330109179,0.55324015,85.459,85.411,0.53418884]
[1771330109381,0.55324015,85.457,85.411,0.53418884]
[1771330109695,18.04,85.456,85.421,0.53418884]
[1771330110289,18.59324015,85.456,85.421,0.53418884]
[1771330110788,58.48734811,85.489,85.411,40.97832831]
[1771330110789,18.04,85.499,85.451,0.53418884]
[1771330110990,18.04,85.498,85.481,0.53418884]
[1771330111191,17.47009352,85.498,85.481,0.53418884]
[1771330111388,18.08,85.511,85.491,0.53418884]
[1771330112281,0.55324015,85.524,85.491,0.53418884]
[1771330112489,0.55324015,85.522,85.491,0.53418884]
[1771330112882,18.08,85.523,85.491,0.53418884]
[1771330112883,0.55324015,85.52,85.491,0.53418884]
[1771330113596,0.55324015,85.52,85.493,0.53418884]
[1771330113800,11.69189937,85.53,85.493,0.53418884]
[1771330113989,0.55324015,85.528,85.48,10.7737102]
[1771330114176,0.55324015,85.528,85.481,0.53418884]
[1771330114699,0.55324015,85.519,85.481,0.53418884]
[1771330115385,0.55324015,85.519,85.482,11.69836924]
[1771330115702,12.24666462,85.519,85.483,0.53418884]
[1771330116194,0.55324015,85.519,85.483,0.53418884]
[1771330116380,12.24658723,85.519,85.483,0.53418884]
[1771330116580,18.06,85.518,85.483,0.53418884]
[1771330118092,18.61324015,85.518,85.485,0.53418884]
[1771330118400,12.24682154,85.517,85.485,0.53418884]
[1771330118596,0.55324015,85.516,85.485,0.53418884]
[1771330118797,11.69358139,85.517,85.465,0.53418884]
[1771330118798,0.55324015,85.499,85.465,0.53418884]
[1771330120398,0.55324015,85.498,85.467,0.53418884]
[1771330122210,0.55324015,85.498,85.462,11.70106308]
[1771330122409,0.55324015,85.496,85.462,11.70106308]
[1771330122785,0.55324015,85.496,85.462,12.23525192]
[1771330123011,0.55324015,85.496,85.463,0.53418884]
[1771330124992,0.5442174,85.494,85.464,11.70083309]
[1771330125490,0.5442174,85.494,85.465,0.55685094]
[1771330127003,0.5442174,85.494,85.466,11.70055928]
[1771330128416,0.5442174,85.494,85.467,0.55685094]
[1771330128589,0.5442174,85.494,85.466,40.95195749]
[1771330128590,18.02,85.499,85.471,0.55685094]
[1771330128895,18.02,85.499,85.481,0.55685094]
[1771330129105,18.02,85.499,85.482,0.55685094]
[1771330129502,10.7737102,85.49,85.45,10.7737102]
[1771330129691,0.5442174,85.488,85.45,0.55685094]
[1771330130092,0.5442174,85.479,85.441,0.55685094]
[1771330130308,18.0,85.478,85.441,0.55685094]
[1771330130487,18.5442174,85.477,85.441,0.55685094]
[1771330130682,0.5442174,85.476,85.441,0.55685094]
[1771330130887,0.53614664,85.474,85.441,0.55685094]
[1771330131106,0.53614664,85.472,85.443,0.58078639]
[1771330131404,18.0,85.471,85.443,0.58078639]
[1771330131608,0.53614664,85.469,85.422,0.58078639]
[1771330131806,0.53614664,85.467,85.431,0.58078639]
[1771330132597,0.53614664,85.465,85.431,0.58078639]
[1771330133108,0.53614664,85.459,85.421,0.58078639]
[1771330133315,0.53614664,85.457,85.423,0.58078639]
[1771330135105,0.53614664,85.449,85.414,0.58078639]
[1771330135309,0.53614664,85.447,85.414,0.58078639]
[1771330135613,0.53614664,85.447,85.415,0.58078639]
[1771330137398,11.70329798,85.446,85.417,0.58078639]
[1771330137809,0.53614664,85.468,85.421,0.58078639]
[1771330138108,0.53614664,85.459,85.421,0.58078639]
[1771330139814,0.53614664,85.449,85.411,0.58078639]
[1771330139995,0.53614664,85.449,85.412,0.58078639]
[1771330140498,0.53614664,85.447,85.412,0.58078639]
[1771330141614,0.53614664,85.445,85.414,0.58078639]
[1771330142014,0.53614664,85.445,85.384,66.84676269]
[1771330142015,0.53614664,85.439,85.401,0.58078639]
[1771330142323,11.70329798,85.446,85.395,11.71028748]
[1771330142324,0.53614664,85.429,85.395,11.71028748]
[1771330142627,0.53614664,85.419,85.394,0.58078639]
[1771330143118,0.53614664,85.419,85.387,0.58078639]
[1771330143317,0.53614664,85.409,85.387,0.58078639]
[1771330143517,11.70850505,85.408,85.387,0.58078639]
[1771330143701,0.53614664,85.407,85.38,0.2]
[1771330144314,17.96,85.406,85.38,0.78078639]
[1771330144517,0.53614664,85.399,85.38,0.2]
[1771330144700,17.96,85.398,85.38,0.2]
[1771330145018,0.53614664,85.397,85.38,0.2]
[1771330145215,17.96,85.398,85.351,0.58078639]
[1771330145216,0.53614664,85.389,85.351,0.58078639]
[1771330146120,0.53614664,85.387,85.352,0.58078639]
[1771330149306,0.53614664,85.387,85.36,10.77895287]
[1771330149505,11.71070458,85.392,85.361,0.58078639]
[1771330150128,12.24685122,85.392,85.361,0.58078639]
[1771330150504,0.53614664,85.391,85.361,0.58078639]
[1771330150705,11.71070458,85.392,85.361,0.58078639]
[1771330150706,30.20604265,85.398,85.361,0.58078639]
[1771330151011,0.53614664,85.397,85.361,0.58078639]
[1771330152421,0.53614664,85.395,85.363,0.58078639]
[1771330153724,17.94,85.394,85.363,0.58078639]
[1771330154711,17.94,85.394,85.362,41.00185093]
[1771330154712,18.51981344,85.394,85.365,0.59740563]
[1771330156123,0.57981344,85.392,85.364,11.71454008]
[1771330156810,0.57981344,85.389,85.36,11.71503701]
[1771330157207,0.57981344,85.389,85.361,0.59740563]
[1771330157414,0.57981344,85.389,85.352,0.59740563]
[1771330157815,0.57981344,85.387,85.352,0.59740563]
[1771330158834,0.57981344,85.385,85.353,11.71604981]
[1771330159130,0.57981344,85.383,85.354,0.59740563]
[1771330159926,0.57981344,85.379,85.35,0.2]
[1771330160117,0.57981344,85.377,85.35,0.2]
[1771330160736,0.57981344,85.377,85.351,11.71632435]
[1771330161027,0.57981344,85.375,85.35,11.91635404]
[1771330161213,0.57981344,85.375,85.351,0.59740563]
[1771330165930,0.57981344,85.373,85.351,0.59740563]
[1771330167334,17.92,85.378,85.35,0.2]
[1771330167335,0.57981344,85.371,85.35,0.2]
[1771330168038,0.57981344,85.371,85.351,11.71632435]
[1771330168234,0.57981344,85.371,85.35,0.79740563]
[1771330168447,0.57981344,85.369,85.343,0.59740563]
[1771330168626,0.57981344,85.367,85.332,0.59740563]
[1771330169720,0.57981344,85.359,85.334,0.59740563]
[1771330171535,11.71536352,85.358,85.334,0.59740563]
[1771330171741,12.29517696,85.358,85.334,0.59740563]
[1771330172041,0.57981344,85.357,85.334,0.59740563]
[1771330174146,17.92,85.356,85.334,0.59740563]
[1771330174845,11.71314049,85.375,85.341,0.59740563]
[1771330175022,17.92,85.374,85.351,0.59740563]
[1771330175229,0.57981344,85.384,85.361,0.59740563]
[1771330175435,11.71069889,85.392,85.361,0.59740563]
[1771330175436,17.92,85.383,85.361,0.59740563]
[1771330176745,0.57981344,85.391,85.361,0.59740563]
[1771330176947,29.27468252,85.399,85.361,0.59740563]
[1771330176948,12.29092377,85.389,85.361,0.59740563]
[1771330177326,12.29092377,85.389,85.363,0.59740563]
[1771330177553,17.92,85.388,85.371,0.59740563]
[1771330177758,17.92,85.387,85.371,0.59740563]
[1771330179429,17.92,85.387,85.363,0.59740563]
[1771330179659,17.92,85.387,85.328,58.59738976]
[1771330179660,0.57981344,85.385,85.351,0.59740563]
[1771330179879,0.57981344,85.369,85.345,11.71709726]
[1771330180172,0.57981344,85.369,85.346,0.59740563]
[1771330180758,0.57981344,85.369,85.347,11.71687346]
[1771330182379,0.57981344,85.369,85.347,12.31427909]
[1771330184576,0.57981344,85.369,85.348,0.61994096]
[1771330184777,0.56899042,85.375,85.348,0.61994096]
[1771330184998,17.9,85.374,85.348,0.61994096]
[1771330185798,0.56899042,85.375,85.35,0.61994096]
[1771330185999,17.9,85.374,85.35,0.61994096]
[1771330186874,0.56899042,85.373,85.351,11.71632435]
[1771330187081,0.56899042,85.373,85.352,0.61994096]
[1771330187314,17.9,85.374,85.352,0.61994096]
[1771330187595,17.9,85.377,85.352,0.61994096]
[1771330187770,0.56899042,85.376,85.352,0.61994096]
[1771330188996,0.56899042,85.374,85.353,11.71604981]
[1771330189492,0.56899042,85.374,85.353,12.33599077]
[1771330189687,0.56899042,85.374,85.354,0.61994096]
[1771330192897,0.57511826,85.372,85.348,0.58675185]
[1771330193074,4.31735488,85.37,85.342,0.58675185]
[1771330193391,0.57511826,85.369,85.342,0.58675185]
[1771330194101,0.57511826,85.372,85.342,0.58675185]
[1771330195804,0.57511826,85.37,85.342,0.58675185]
[1771330197087,0.57511826,85.37,85.344,0.58675185]
[1771330198074,0.57511826,85.388,85.351,0.58675185]
[1771330198375,0.57511826,85.388,85.345,11.71714804]
[1771330198376,17.9,85.38,85.361,0.58675185]
[1771330200601,17.9,85.38,85.347,0.58675185]
[1771330200602,0.57511826,85.378,85.347,0.58675185]
[1771330204885,11.71248199,85.379,85.335,29.29613328]
[1771330204886,0.57511826,85.369,85.339,0.58675185]
[1771330205081,0.57511826,85.359,85.339,0.58675185]
[1771330205708,0.57511826,85.359,85.34,11.71783454]